[Event "Titled Tuesday Blitz August 22 Late 2023"]
[White "Zhu, Jiner"]
[Black "Gorovets, Andrey"]
[WhiteFideId "8608059"]
[BlackFideId "13504037"]
[WhiteElo "2680"]
[BlackElo "2814"]
[Result "1-0"]
[Round "11"]
[TimeControl "180+1"]
[Date "2023.08.22"]
[WhiteClock "0:00:03"]
[BlackClock "0:00:00"]
[Board "17"]

1. e4 {[%clk 0:03:00]}  c5 {[%clk 0:03:00]} 2. Nf3 {[%clk 0:03:00]}  Nc6 {[%clk 0:03:00]} 3. d4 {[%clk 0:03:01]}  cxd4 {[%clk 0:03:01]} 4. Nxd4 {[%clk 0:03:02]}  Nf6 {[%clk 0:03:02]} 5. Nc3 {[%clk 0:03:02]}  e5 {[%clk 0:03:02]} 6. Ndb5 {[%clk 0:03:02]}  d6 {[%clk 0:03:03]} 7. Bg5 {[%clk 0:03:02]}  a6 {[%clk 0:03:03]} 8. Na3 {[%clk 0:03:03]}  Be6 {[%clk 0:03:04]} 9. Nc4 {[%clk 0:02:55]}  Rb8 {[%clk 0:03:04]} 10. Ne3 {[%clk 0:02:44]}  Be7 {[%clk 0:03:03]} 11. Bxf6 {[%clk 0:02:44]}  Bxf6 {[%clk 0:03:04]} 12. Ncd5 {[%clk 0:02:42]}  Bg5 {[%clk 0:03:02]} 13. c3 {[%clk 0:02:39]}  O-O {[%clk 0:02:56]} 14. Be2 {[%clk 0:02:39]}  g6 {[%clk 0:02:49]} 15. O-O {[%clk 0:02:38]}  Kh8 {[%clk 0:02:41]} 16. a4 {[%clk 0:02:33]}  Bh6 {[%clk 0:02:19]} 17. Qd3 {[%clk 0:02:23]}  f5 {[%clk 0:02:17]} 18. exf5 {[%clk 0:02:22]}  gxf5 {[%clk 0:02:17]} 19. f4 {[%clk 0:02:21]}  e4 {[%clk 0:02:05]} 20. Qd2 {[%clk 0:02:18]}  Na5 {[%clk 0:01:56]} 21. Rad1 {[%clk 0:02:14]}  Rc8 {[%clk 0:01:48]} 22. b4 {[%clk 0:02:07]}  Nc6 {[%clk 0:01:48]} 23. a5 {[%clk 0:02:07]}  Bg7 {[%clk 0:01:46]} 24. Nb6 {[%clk 0:02:05]}  Rb8 {[%clk 0:01:33]} 25. Bc4 {[%clk 0:01:56]}  Qf6 {[%clk 0:01:25]} 26. Bxe6 {[%clk 0:01:53]}  Qxe6 {[%clk 0:01:26]} 27. Rc1 {[%clk 0:01:12]}  Rbd8 {[%clk 0:01:22]} 28. Rfd1 {[%clk 0:01:07]}  Ne7 {[%clk 0:01:06]} 29. g3 {[%clk 0:00:54]}  h6 {[%clk 0:00:51]} 30. Nbd5 {[%clk 0:00:42]}  Nc6 {[%clk 0:00:49]} 31. Nb6 {[%clk 0:00:42]}  Kh7 {[%clk 0:00:46]} 32. Qd5 {[%clk 0:00:41]}  Qg6 {[%clk 0:00:46]} 33. Kf2 {[%clk 0:00:36]}  Qh5 {[%clk 0:00:42]} 34. Kg1 {[%clk 0:00:30]}  Ne5 {[%clk 0:00:32]} 35. fxe5 {[%clk 0:00:23]}  dxe5 {[%clk 0:00:33]} 36. Qxb7 {[%clk 0:00:15]}  Rxd1+ {[%clk 0:00:27]} 37. Rxd1 {[%clk 0:00:14]}  f4 {[%clk 0:00:17]} 38. Qxe4+ {[%clk 0:00:13]}  Kh8 {[%clk 0:00:17]} 39. Rf1 {[%clk 0:00:09]}  Re8 {[%clk 0:00:10]} 40. Nf5 {[%clk 0:00:05]}  Bf6 {[%clk 0:00:07]} 41. Nd5 {[%clk 0:00:04]}  Bg5 {[%clk 0:00:08]} 42. Qf3 {[%clk 0:00:02]}  Qg6 {[%clk 0:00:08]} 43. Qe4 {[%clk 0:00:02]}  fxg3 {[%clk 0:00:07]} 44. hxg3 {[%clk 0:00:03]}  Bf4 {[%clk 0:00:07]} 45. Kg2 {[%clk 0:00:02]}  Rg8 {[%clk 0:00:06]} 46. Rf3 {[%clk 0:00:03]}  Bg5 {[%clk 0:00:04]} 47. Nde7 {[%clk 0:00:03]}  Bxe7 {[%clk 0:00:04]} 48. Qxe5+ {[%clk 0:00:04]}  Bf6 {[%clk 0:00:04]} 49. Qd5 {[%clk 0:00:04]}  Re8 {[%clk 0:00:04]} 50. Qd3 {[%clk 0:00:04]}  Re5 {[%clk 0:00:00]} 51. Nh4 {[%clk 0:00:03]} 1-0


[Site "https://www.chess.com"]

[Event "Titled Tuesday Blitz August 22 Late 2023"]
[White "Jakubowski, Krzysztof"]
[Black "Bauman_Guy"]
[WhiteFideId "1112848"]
[WhiteElo "2651"]
[BlackElo "2798"]
[Result "0-1"]
[Round "11"]
[TimeControl "180+1"]
[Date "2023.08.22"]
[WhiteClock "0:00:23"]
[BlackClock "0:00:49"]
[Board "19"]

1. e4 {[%clk 0:03:00]}  c5 {[%clk 0:02:58]} 2. Nf3 {[%clk 0:03:00]}  d6 {[%clk 0:02:59]} 3. d4 {[%clk 0:03:00]}  Nf6 {[%clk 0:02:59]} 4. Nc3 {[%clk 0:02:58]}  cxd4 {[%clk 0:03:00]} 5. Nxd4 {[%clk 0:02:58]}  a6 {[%clk 0:03:00]} 6. Be3 {[%clk 0:02:58]}  e5 {[%clk 0:03:00]} 7. Nb3 {[%clk 0:02:58]}  Be6 {[%clk 0:03:01]} 8. h3 {[%clk 0:02:58]}  Nc6 {[%clk 0:02:55]} 9. Qf3 {[%clk 0:02:48]}  Rc8 {[%clk 0:02:42]} 10. O-O-O {[%clk 0:02:46]}  Nb4 {[%clk 0:02:42]} 11. g4 {[%clk 0:02:41]}  d5 {[%clk 0:02:20]} 12. g5 {[%clk 0:02:25]}  Nxe4 {[%clk 0:02:09]} 13. Nxe4 {[%clk 0:02:23]}  Nxc2 {[%clk 0:02:06]} 14. Nc3 {[%clk 0:02:18]}  Nxe3 {[%clk 0:02:02]} 15. fxe3 {[%clk 0:02:15]}  Bb4 {[%clk 0:02:01]} 16. Qg3 {[%clk 0:01:56]}  Bxc3 {[%clk 0:01:50]} 17. bxc3 {[%clk 0:01:56]}  Rxc3+ {[%clk 0:01:50]} 18. Kb2 {[%clk 0:01:55]}  Qc7 {[%clk 0:01:50]} 19. Bd3 {[%clk 0:01:42]}  O-O {[%clk 0:01:49]} 20. Rc1 {[%clk 0:01:41]}  Rc8 {[%clk 0:01:49]} 21. Qh2 {[%clk 0:01:26]}  d4 {[%clk 0:01:43]} 22. exd4 {[%clk 0:01:24]}  Bxb3 {[%clk 0:01:42]} 23. Qd2 {[%clk 0:01:05]}  Rxc1 {[%clk 0:01:37]} 24. Rxc1 {[%clk 0:01:04]}  Qxc1+ {[%clk 0:01:37]} 25. Qxc1 {[%clk 0:01:04]}  Rxc1 {[%clk 0:01:38]} 26. Kxc1 {[%clk 0:01:04]}  Bxa2 {[%clk 0:01:38]} 27. dxe5 {[%clk 0:01:03]}  h6 {[%clk 0:01:28]} 28. h4 {[%clk 0:01:02]}  hxg5 {[%clk 0:01:24]} 29. hxg5 {[%clk 0:01:03]}  Kf8 {[%clk 0:01:24]} 30. Kb2 {[%clk 0:01:02]}  Bd5 {[%clk 0:01:19]} 31. Ka3 {[%clk 0:01:02]}  Ke7 {[%clk 0:01:13]} 32. Bf5 {[%clk 0:01:00]}  b6 {[%clk 0:01:10]} 33. Kb4 {[%clk 0:00:58]}  Bc6 {[%clk 0:01:10]} 34. Bg4 {[%clk 0:00:57]}  a5+ {[%clk 0:01:11]} 35. Kc4 {[%clk 0:00:57]}  Bd7 {[%clk 0:01:08]} 36. Bd1 {[%clk 0:00:54]}  b5+ {[%clk 0:01:07]} 37. Kd5 {[%clk 0:00:53]}  b4 {[%clk 0:01:08]} 38. Kc5 {[%clk 0:00:52]}  Be6 {[%clk 0:01:04]} 39. Bc2 {[%clk 0:00:44]}  b3 {[%clk 0:00:57]} 40. Bb1 {[%clk 0:00:44]}  a4 {[%clk 0:00:51]} 41. Kb4 {[%clk 0:00:44]}  Bd7 {[%clk 0:00:51]} 42. g6 {[%clk 0:00:27]}  fxg6 {[%clk 0:00:49]} 43. Bxg6 {[%clk 0:00:23]}  Ke6 {[%clk 0:00:49]} 0-1


[Site "https://www.chess.com"]

[Event "Titled Tuesday Blitz August 22 Late 2023"]
[White "Trifan, Andrei Ioan"]
[Black "Leiva, Gianmarco"]
[WhiteFideId "12967068"]
[BlackFideId "3804399"]
[WhiteElo "2591"]
[BlackElo "2759"]
[Result "0-1"]
[Round "11"]
[TimeControl "180+1"]
[Date "2023.08.22"]
[WhiteClock "0:00:17"]
[BlackClock "0:00:06"]
[Board "20"]

1. Nf3 {[%clk 0:03:00]}  d5 {[%clk 0:02:57]} 2. b3 {[%clk 0:02:59]}  Bg4 {[%clk 0:02:55]} 3. Bb2 {[%clk 0:02:57]}  c6 {[%clk 0:02:53]} 4. e3 {[%clk 0:02:56]}  Nd7 {[%clk 0:02:52]} 5. Be2 {[%clk 0:02:56]}  e6 {[%clk 0:02:48]} 6. O-O {[%clk 0:02:53]}  Ngf6 {[%clk 0:02:36]} 7. d4 {[%clk 0:02:52]}  Bd6 {[%clk 0:02:31]} 8. Nbd2 {[%clk 0:02:51]}  Qb8 {[%clk 0:02:29]} 9. h3 {[%clk 0:02:49]}  Bf5 {[%clk 0:02:20]} 10. Nh4 {[%clk 0:02:39]}  Be4 {[%clk 0:02:11]} 11. Nhf3 {[%clk 0:02:24]}  h6 {[%clk 0:02:04]} 12. c4 {[%clk 0:02:21]}  Bh7 {[%clk 0:01:56]} 13. Re1 {[%clk 0:02:04]}  O-O {[%clk 0:01:56]} 14. a3 {[%clk 0:01:59]}  b5 {[%clk 0:01:54]} 15. c5 {[%clk 0:01:57]}  Bc7 {[%clk 0:01:53]} 16. b4 {[%clk 0:01:56]}  a5 {[%clk 0:01:52]} 17. Bc3 {[%clk 0:01:53]}  a4 {[%clk 0:01:48]} 18. Qc1 {[%clk 0:01:52]}  Ne4 {[%clk 0:01:41]} 19. Nxe4 {[%clk 0:01:52]}  dxe4 {[%clk 0:01:35]} 20. Nd2 {[%clk 0:01:46]}  f5 {[%clk 0:01:29]} 21. f3 {[%clk 0:01:35]}  Nf6 {[%clk 0:00:59]} 22. fxe4 {[%clk 0:01:31]}  fxe4 {[%clk 0:00:59]} 23. Bb2 {[%clk 0:01:09]}  Qe8 {[%clk 0:00:57]} 24. Qd1 {[%clk 0:01:05]}  Qg6 {[%clk 0:00:57]} 25. Nf1 {[%clk 0:01:03]}  Nd5 {[%clk 0:00:55]} 26. Bh5 {[%clk 0:01:01]}  Qg5 {[%clk 0:00:55]} 27. Qg4 {[%clk 0:01:00]}  Qe7 {[%clk 0:00:48]} 28. Bg6 {[%clk 0:00:57]}  Bxg6 {[%clk 0:00:32]} 29. Qxg6 {[%clk 0:00:58]}  Rf5 {[%clk 0:00:32]} 30. Nd2 {[%clk 0:00:46]}  Nf6 {[%clk 0:00:19]} 31. d5 {[%clk 0:00:46]}  cxd5 {[%clk 0:00:16]} 32. Rf1 {[%clk 0:00:39]}  Qf7 {[%clk 0:00:12]} 33. Qxf7+ {[%clk 0:00:32]}  Kxf7 {[%clk 0:00:12]} 34. g4 {[%clk 0:00:33]}  Rxf1+ {[%clk 0:00:11]} 35. Rxf1 {[%clk 0:00:34]}  Ke7 {[%clk 0:00:11]} 36. Kg2 {[%clk 0:00:30]}  Nd7 {[%clk 0:00:11]} 37. Bxg7 {[%clk 0:00:28]}  h5 {[%clk 0:00:08]} 38. gxh5 {[%clk 0:00:20]}  Rg8 {[%clk 0:00:08]} 39. h6 {[%clk 0:00:20]}  Be5 {[%clk 0:00:09]} 40. Kh1 {[%clk 0:00:20]}  Bxg7 {[%clk 0:00:09]} 41. Rg1 {[%clk 0:00:21]}  Kf7 {[%clk 0:00:06]} 42. c6 {[%clk 0:00:20]}  Nb6 {[%clk 0:00:05]} 43. Rxg7+ {[%clk 0:00:18]}  Rxg7 {[%clk 0:00:06]} 44. hxg7 {[%clk 0:00:19]}  Kxg7 {[%clk 0:00:07]} 45. h4 {[%clk 0:00:18]}  Kg6 {[%clk 0:00:04]} 46. Kg2 {[%clk 0:00:19]}  Kf5 {[%clk 0:00:04]} 47. Kh3 {[%clk 0:00:20]}  e5 {[%clk 0:00:05]} 48. h5 {[%clk 0:00:20]}  Kg5 {[%clk 0:00:05]} 49. Nf1 {[%clk 0:00:18]}  Kxh5 {[%clk 0:00:05]} 50. Ng3+ {[%clk 0:00:19]}  Kg5 {[%clk 0:00:04]} 51. Ne2 {[%clk 0:00:19]}  Kf5 {[%clk 0:00:04]} 52. Kh4 {[%clk 0:00:20]}  Ke6 {[%clk 0:00:02]} 53. Kg5 {[%clk 0:00:20]}  Kd6 {[%clk 0:00:03]} 54. Kf6 {[%clk 0:00:21]}  Nc4 {[%clk 0:00:03]} 55. c7 {[%clk 0:00:20]}  Kxc7 {[%clk 0:00:03]} 56. Ke6 {[%clk 0:00:21]}  Kc6 {[%clk 0:00:03]} 57. Nc3 {[%clk 0:00:21]}  Nxe3 {[%clk 0:00:03]} 58. Kxe5 {[%clk 0:00:21]}  Nc4+ {[%clk 0:00:04]} 59. Kd4 {[%clk 0:00:22]}  Nb6 {[%clk 0:00:04]} 60. Ke5 {[%clk 0:00:21]}  Nc4+ {[%clk 0:00:03]} 61. Kd4 {[%clk 0:00:21]}  e3 {[%clk 0:00:03]} 62. Ne2 {[%clk 0:00:20]}  Kd6 {[%clk 0:00:03]} 63. Nc3 {[%clk 0:00:20]}  Kc6 {[%clk 0:00:02]} 64. Ne2 {[%clk 0:00:20]}  Nxa3 {[%clk 0:00:03]} 65. Kxe3 {[%clk 0:00:20]}  Nc2+ {[%clk 0:00:03]} 66. Kd3 {[%clk 0:00:20]}  Nxb4+ {[%clk 0:00:04]} 67. Kc3 {[%clk 0:00:20]}  Kc5 {[%clk 0:00:04]} 68. Nf4 {[%clk 0:00:20]}  Nc6 {[%clk 0:00:04]} 69. Nd3+ {[%clk 0:00:20]}  Kd6 {[%clk 0:00:04]} 70. Nc1 {[%clk 0:00:19]}  b4+ {[%clk 0:00:04]} 71. Kd3 {[%clk 0:00:20]}  Kc5 {[%clk 0:00:05]} 72. Kc2 {[%clk 0:00:20]}  d4 {[%clk 0:00:04]} 73. Nd3+ {[%clk 0:00:21]}  Kc4 {[%clk 0:00:05]} 74. Nb2+ {[%clk 0:00:21]}  Kb5 {[%clk 0:00:05]} 75. Nd3 {[%clk 0:00:21]}  b3+ {[%clk 0:00:05]} 76. Kb1 {[%clk 0:00:22]}  Kc4 {[%clk 0:00:05]} 77. Nc1 {[%clk 0:00:23]}  a3 {[%clk 0:00:05]} 78. Ne2 {[%clk 0:00:21]}  Nb4 {[%clk 0:00:05]} 79. Nf4 {[%clk 0:00:21]}  a2+ {[%clk 0:00:05]} 80. Kb2 {[%clk 0:00:20]}  Nc2 {[%clk 0:00:06]} 81. Kc1 {[%clk 0:00:17]}  a1=Q+ {[%clk 0:00:06]} 0-1


[Site "https://www.chess.com"]

[Event "Titled Tuesday Blitz August 22 Late 2023"]
[White "Chigaev, Maksim"]
[Black "Guerra Tulcan, Lenin"]
[WhiteFideId "4108116"]
[BlackFideId "3601382"]
[WhiteElo "2947"]
[BlackElo "2581"]
[Result "1-0"]
[Round "11"]
[TimeControl "180+1"]
[Date "2023.08.22"]
[WhiteClock "0:01:03"]
[BlackClock "0:00:06"]
[Board "22"]

1. e4 {[%clk 0:03:00]}  c5 {[%clk 0:03:00]} 2. Ne2 {[%clk 0:03:00]}  e6 {[%clk 0:03:00]} 3. Nbc3 {[%clk 0:02:56]}  Nc6 {[%clk 0:02:59]} 4. d4 {[%clk 0:02:50]}  cxd4 {[%clk 0:02:59]} 5. Nxd4 {[%clk 0:02:51]}  Qc7 {[%clk 0:02:59]} 6. Be2 {[%clk 0:02:48]}  a6 {[%clk 0:02:58]} 7. Qd3 {[%clk 0:02:48]}  Nxd4 {[%clk 0:02:52]} 8. Qxd4 {[%clk 0:02:48]}  Ne7 {[%clk 0:02:52]} 9. Be3 {[%clk 0:02:47]}  Nc6 {[%clk 0:02:52]} 10. Qb6 {[%clk 0:02:47]}  Qxb6 {[%clk 0:02:52]} 11. Bxb6 {[%clk 0:02:47]}  Bb4 {[%clk 0:02:37]} 12. O-O-O {[%clk 0:02:46]}  O-O {[%clk 0:02:12]} 13. Na4 {[%clk 0:02:26]}  Re8 {[%clk 0:01:59]} 14. a3 {[%clk 0:02:24]}  Be7 {[%clk 0:01:52]} 15. f4 {[%clk 0:02:10]}  d6 {[%clk 0:01:00]} 16. Rhe1 {[%clk 0:02:06]}  Bd7 {[%clk 0:00:49]} 17. Kb1 {[%clk 0:01:57]}  Na7 {[%clk 0:00:35]} 18. Nc3 {[%clk 0:01:49]}  Nc8 {[%clk 0:00:30]} 19. Be3 {[%clk 0:01:47]}  Bc6 {[%clk 0:00:28]} 20. Bf3 {[%clk 0:01:43]}  b5 {[%clk 0:00:27]} 21. f5 {[%clk 0:01:30]}  Rb8 {[%clk 0:00:24]} 22. Ne2 {[%clk 0:01:23]}  e5 {[%clk 0:00:17]} 23. Nc3 {[%clk 0:01:12]}  Nb6 {[%clk 0:00:17]} 24. Bxb6 {[%clk 0:01:12]}  Rxb6 {[%clk 0:00:18]} 25. Nd5 {[%clk 0:01:13]}  Bxd5 {[%clk 0:00:18]} 26. Rxd5 {[%clk 0:01:13]}  Rc8 {[%clk 0:00:17]} 27. Be2 {[%clk 0:01:10]}  Rc5 {[%clk 0:00:14]} 28. Red1 {[%clk 0:01:11]}  Rxd5 {[%clk 0:00:13]} 29. Rxd5 {[%clk 0:01:11]}  Kf8 {[%clk 0:00:14]} 30. c3 {[%clk 0:01:10]}  Ke8 {[%clk 0:00:13]} 31. b4 {[%clk 0:01:08]}  Kd7 {[%clk 0:00:13]} 32. Kc2 {[%clk 0:01:08]}  Kc7 {[%clk 0:00:13]} 33. Kb3 {[%clk 0:01:09]}  Rc6 {[%clk 0:00:11]} 34. c4 {[%clk 0:01:05]}  bxc4+ {[%clk 0:00:10]} 35. Bxc4 {[%clk 0:01:05]}  f6 {[%clk 0:00:09]} 36. Ra5 {[%clk 0:01:02]}  Kb7 {[%clk 0:00:09]} 37. Bd5 {[%clk 0:01:02]}  Bd8 {[%clk 0:00:05]} 38. Bxc6+ {[%clk 0:01:01]}  Kxc6 {[%clk 0:00:06]} 39. Rxa6+ {[%clk 0:01:02]}  Kd7 {[%clk 0:00:06]} 40. Ra7+ {[%clk 0:01:02]}  Kc6 {[%clk 0:00:06]} 41. Kc4 {[%clk 0:01:02]}  Bb6 {[%clk 0:00:06]} 42. b5# {[%clk 0:01:03]} 1-0


[Site "https://www.chess.com"]

[Event "Titled Tuesday Blitz August 22 Late 2023"]
[White "Shuvalova, Polina"]
[Black "Santos Latasa, Jaime"]
[WhiteFideId "24171760"]
[BlackFideId "2293307"]
[WhiteElo "2668"]
[BlackElo "2943"]
[Result "0-1"]
[Round "11"]
[TimeControl "180+1"]
[Date "2023.08.22"]
[WhiteClock "0:00:02"]
[BlackClock "0:00:27"]
[Board "23"]

1. e4 {[%clk 0:03:00]}  c5 {[%clk 0:02:59]} 2. Nf3 {[%clk 0:03:01]}  Nc6 {[%clk 0:02:59]} 3. Bb5 {[%clk 0:03:01]}  e6 {[%clk 0:02:57]} 4. O-O {[%clk 0:02:58]}  Nge7 {[%clk 0:02:57]} 5. Re1 {[%clk 0:02:59]}  a6 {[%clk 0:02:55]} 6. Bf1 {[%clk 0:02:59]}  d5 {[%clk 0:02:55]} 7. exd5 {[%clk 0:02:46]}  Nxd5 {[%clk 0:02:56]} 8. Nc3 {[%clk 0:02:46]}  Nf6 {[%clk 0:02:53]} 9. d3 {[%clk 0:02:42]}  Be7 {[%clk 0:02:52]} 10. Be3 {[%clk 0:02:39]}  Ng4 {[%clk 0:02:42]} 11. Bf4 {[%clk 0:02:37]}  O-O {[%clk 0:02:41]} 12. h3 {[%clk 0:02:36]}  Nf6 {[%clk 0:02:41]} 13. Ne4 {[%clk 0:02:31]}  Nd5 {[%clk 0:02:39]} 14. Bd2 {[%clk 0:02:24]}  e5 {[%clk 0:02:38]} 15. c3 {[%clk 0:02:08]}  Kh8 {[%clk 0:02:35]} 16. Qc2 {[%clk 0:02:06]}  Bf5 {[%clk 0:02:32]} 17. Rad1 {[%clk 0:02:06]}  Qc7 {[%clk 0:02:27]} 18. a3 {[%clk 0:02:03]}  Rad8 {[%clk 0:02:25]} 19. g3 {[%clk 0:01:40]}  h6 {[%clk 0:02:19]} 20. Bg2 {[%clk 0:01:39]}  Bh7 {[%clk 0:02:15]} 21. c4 {[%clk 0:01:27]}  Nb6 {[%clk 0:02:01]} 22. Be3 {[%clk 0:01:18]}  Nd4 {[%clk 0:01:43]} 23. Bxd4 {[%clk 0:01:13]}  cxd4 {[%clk 0:01:36]} 24. g4 {[%clk 0:01:13]}  Rfe8 {[%clk 0:01:33]} 25. Ng3 {[%clk 0:01:11]}  Bf8 {[%clk 0:01:28]} 26. Nh4 {[%clk 0:01:10]}  a5 {[%clk 0:01:22]} 27. Re2 {[%clk 0:01:05]}  Nd7 {[%clk 0:01:16]} 28. Rde1 {[%clk 0:00:50]}  Nc5 {[%clk 0:01:15]} 29. Nhf5 {[%clk 0:00:50]}  f6 {[%clk 0:01:07]} 30. b4 {[%clk 0:00:46]}  axb4 {[%clk 0:01:06]} 31. axb4 {[%clk 0:00:47]}  Ne6 {[%clk 0:01:06]} 32. b5 {[%clk 0:00:32]}  Nf4 {[%clk 0:01:05]} 33. Kh2 {[%clk 0:00:23]}  Ra8 {[%clk 0:00:50]} 34. Be4 {[%clk 0:00:21]}  Red8 {[%clk 0:00:48]} 35. Rd2 {[%clk 0:00:21]}  Bb4 {[%clk 0:00:47]} 36. Nh4 {[%clk 0:00:12]}  Bxe4 {[%clk 0:00:43]} 37. Rxe4 {[%clk 0:00:12]}  Bxd2 {[%clk 0:00:41]} 38. Qxd2 {[%clk 0:00:13]}  Ra3 {[%clk 0:00:37]} 39. Rxf4 {[%clk 0:00:09]}  exf4 {[%clk 0:00:38]} 40. Ng6+ {[%clk 0:00:09]}  Kg8 {[%clk 0:00:38]} 41. Nf5 {[%clk 0:00:07]}  f3+ {[%clk 0:00:36]} 42. Ng3 {[%clk 0:00:05]}  Re8 {[%clk 0:00:35]} 43. h4 {[%clk 0:00:04]}  Re2 {[%clk 0:00:34]} 44. Qc1 {[%clk 0:00:03]}  Rxf2+ {[%clk 0:00:32]} 45. Kh3 {[%clk 0:00:04]}  Raa2 {[%clk 0:00:28]} 46. g5 {[%clk 0:00:03]}  Qd7+ {[%clk 0:00:27]} 47. Nf5 {[%clk 0:00:01]}  Qxf5+ {[%clk 0:00:27]} 48. Kg3 {[%clk 0:00:02]}  Rg2# {[%clk 0:00:27]} 0-1


[Site "https://www.chess.com"]

[Event "Titled Tuesday Blitz August 22 Late 2023"]
[White "Rustemov, Alexander"]
[Black "Papayan, Oleg"]
[WhiteFideId "4119002"]
[BlackFideId "4193911"]
[WhiteElo "2858"]
[BlackElo "2623"]
[Result "1/2-1/2"]
[Round "11"]
[TimeControl "180+1"]
[Date "2023.08.22"]
[WhiteClock "0:00:06"]
[BlackClock "0:00:06"]
[Board "25"]

1. d4 {[%clk 0:02:59]}  Nf6 {[%clk 0:02:55]} 2. c4 {[%clk 0:02:59]}  b6 {[%clk 0:02:54]} 3. Nf3 {[%clk 0:02:57]}  Bb7 {[%clk 0:02:55]} 4. Nc3 {[%clk 0:02:57]}  e6 {[%clk 0:02:54]} 5. a3 {[%clk 0:02:57]}  Ne4 {[%clk 0:02:53]} 6. Nxe4 {[%clk 0:02:56]}  Bxe4 {[%clk 0:02:54]} 7. Bf4 {[%clk 0:02:56]}  Bb7 {[%clk 0:02:53]} 8. e3 {[%clk 0:02:56]}  g6 {[%clk 0:02:50]} 9. Bd3 {[%clk 0:02:56]}  Bg7 {[%clk 0:02:49]} 10. O-O {[%clk 0:02:56]}  d6 {[%clk 0:02:50]} 11. h3 {[%clk 0:02:46]}  O-O {[%clk 0:02:49]} 12. Rc1 {[%clk 0:02:42]}  Nd7 {[%clk 0:02:43]} 13. Bh2 {[%clk 0:02:41]}  e5 {[%clk 0:02:43]} 14. Be2 {[%clk 0:02:36]}  a5 {[%clk 0:02:38]} 15. b3 {[%clk 0:02:36]}  exd4 {[%clk 0:02:36]} 16. Nxd4 {[%clk 0:02:33]}  Nc5 {[%clk 0:02:33]} 17. Qc2 {[%clk 0:02:27]}  Re8 {[%clk 0:02:29]} 18. Rfd1 {[%clk 0:02:26]}  Be4 {[%clk 0:02:24]} 19. Qa2 {[%clk 0:02:21]}  Qg5 {[%clk 0:02:22]} 20. Nf3 {[%clk 0:02:08]}  Qf6 {[%clk 0:02:15]} 21. Nd4 {[%clk 0:01:56]}  Qg5 {[%clk 0:02:13]} 22. Nf3 {[%clk 0:01:56]}  Qf6 {[%clk 0:02:13]} 23. Nd4 {[%clk 0:01:56]}  h5 {[%clk 0:02:13]} 24. Bf3 {[%clk 0:01:49]}  Bxf3 {[%clk 0:02:08]} 25. Nxf3 {[%clk 0:01:47]}  a4 {[%clk 0:02:04]} 26. b4 {[%clk 0:01:46]}  Nb3 {[%clk 0:02:04]} 27. Rb1 {[%clk 0:01:42]}  Qf5 {[%clk 0:02:03]} 28. Qe2 {[%clk 0:01:38]}  Re7 {[%clk 0:01:52]} 29. Qd3 {[%clk 0:01:36]}  Re4 {[%clk 0:01:38]} 30. Ng5 {[%clk 0:01:28]}  Rae8 {[%clk 0:01:18]} 31. Nxe4 {[%clk 0:01:26]}  Qxe4 {[%clk 0:01:18]} 32. Rxb3 {[%clk 0:01:13]}  axb3 {[%clk 0:01:16]} 33. Qxb3 {[%clk 0:01:13]}  Ra8 {[%clk 0:01:06]} 34. a4 {[%clk 0:01:14]}  Qc6 {[%clk 0:01:05]} 35. b5 {[%clk 0:01:13]}  Qe4 {[%clk 0:00:59]} 36. Bf4 {[%clk 0:01:11]}  Qb7 {[%clk 0:00:53]} 37. Rd2 {[%clk 0:01:08]}  Qe4 {[%clk 0:00:50]} 38. Ra2 {[%clk 0:01:05]}  Ra5 {[%clk 0:00:49]} 39. f3 {[%clk 0:01:03]}  Qf5 {[%clk 0:00:48]} 40. Bg3 {[%clk 0:00:59]}  Ra8 {[%clk 0:00:32]} 41. Be1 {[%clk 0:00:59]}  Qc5 {[%clk 0:00:29]} 42. a5 {[%clk 0:00:55]}  bxa5 {[%clk 0:00:28]} 43. Rxa5 {[%clk 0:00:55]}  Re8 {[%clk 0:00:28]} 44. Bf2 {[%clk 0:00:52]}  Bh6 {[%clk 0:00:21]} 45. e4 {[%clk 0:00:48]}  Qe5 {[%clk 0:00:18]} 46. Ra2 {[%clk 0:00:41]}  Bf4 {[%clk 0:00:17]} 47. Qd3 {[%clk 0:00:38]}  Qe6 {[%clk 0:00:16]} 48. Qd5 {[%clk 0:00:38]}  Qd7 {[%clk 0:00:16]} 49. Ra8 {[%clk 0:00:36]}  Kh7 {[%clk 0:00:12]} 50. Rxe8 {[%clk 0:00:34]}  Qxe8 {[%clk 0:00:13]} 51. Bd4 {[%clk 0:00:34]}  Qe7 {[%clk 0:00:11]} 52. Kf1 {[%clk 0:00:33]}  h4 {[%clk 0:00:11]} 53. Bf2 {[%clk 0:00:29]}  Be5 {[%clk 0:00:10]} 54. Qd2 {[%clk 0:00:26]}  Qf6 {[%clk 0:00:10]} 55. Qe1 {[%clk 0:00:26]}  g5 {[%clk 0:00:10]} 56. Be3 {[%clk 0:00:25]}  Qe6 {[%clk 0:00:09]} 57. Qe2 {[%clk 0:00:25]}  f6 {[%clk 0:00:10]} 58. Qd3 {[%clk 0:00:25]}  Qc8 {[%clk 0:00:10]} 59. Qd5 {[%clk 0:00:25]}  Kg7 {[%clk 0:00:10]} 60. Bd4 {[%clk 0:00:22]}  Bxd4 {[%clk 0:00:08]} 61. Qxd4 {[%clk 0:00:22]}  Qa8 {[%clk 0:00:09]} 62. Kg1 {[%clk 0:00:20]}  Qa5 {[%clk 0:00:09]} 63. Qd1 {[%clk 0:00:12]}  Qc3 {[%clk 0:00:08]} 64. Qe2 {[%clk 0:00:12]}  Qd4+ {[%clk 0:00:08]} 65. Kh1 {[%clk 0:00:13]}  Kh6 {[%clk 0:00:08]} 66. Qf1 {[%clk 0:00:10]}  Qe3 {[%clk 0:00:07]} 67. Qd1 {[%clk 0:00:09]}  Qc3 {[%clk 0:00:07]} 68. Qf1 {[%clk 0:00:08]}  Kg7 {[%clk 0:00:07]} 69. Qe2 {[%clk 0:00:08]}  Kf7 {[%clk 0:00:07]} 70. Kh2 {[%clk 0:00:08]}  Ke6 {[%clk 0:00:07]} 71. g3 {[%clk 0:00:07]}  Qe5 {[%clk 0:00:05]} 72. Qf2 {[%clk 0:00:07]}  hxg3+ {[%clk 0:00:05]} 73. Qxg3 {[%clk 0:00:08]}  Qb2+ {[%clk 0:00:06]} 74. Qg2 {[%clk 0:00:07]}  Qe5+ {[%clk 0:00:06]} 75. Qg3 {[%clk 0:00:06]}  Qb2+ {[%clk 0:00:06]} 76. Qg2 {[%clk 0:00:03]}  Qe5+ {[%clk 0:00:07]} 77. Kh1 {[%clk 0:00:04]}  Qa1+ {[%clk 0:00:06]} 78. Qg1 {[%clk 0:00:04]}  Qa2 {[%clk 0:00:07]} 79. Qf1 {[%clk 0:00:03]}  Qd2 {[%clk 0:00:07]} 80. Qg2 {[%clk 0:00:03]}  Qc1+ {[%clk 0:00:07]} 81. Kh2 {[%clk 0:00:04]}  Qxc4 {[%clk 0:00:08]} 82. Qg4+ {[%clk 0:00:04]}  Ke7 {[%clk 0:00:08]} 83. Qf5 {[%clk 0:00:04]}  Qc2+ {[%clk 0:00:08]} 84. Kg3 {[%clk 0:00:05]}  Qc1 {[%clk 0:00:08]} 85. Kg4 {[%clk 0:00:04]}  Qc4 {[%clk 0:00:06]} 86. Kh5 {[%clk 0:00:04]}  Qf7+ {[%clk 0:00:06]} 87. Kh6 {[%clk 0:00:05]}  Qf8+ {[%clk 0:00:06]} 88. Kh7 {[%clk 0:00:05]}  Qf7+ {[%clk 0:00:07]} 89. Kh6 {[%clk 0:00:05]}  Qf8+ {[%clk 0:00:07]} 90. Kg6 {[%clk 0:00:06]}  Qf7+ {[%clk 0:00:06]} 91. Kh6 {[%clk 0:00:06]} 1/2-1/2


[Site "https://www.chess.com"]